Cogmind - Beta 15 @@@ ROGUE MODE // 2025.06.23 @ 04:23:51 Player: puppuppit Result: Destroyed by P-70 Sage with Tesla Rifle Performance ------------- Evolutions (5) 2500 Regions Visited (9) 1800 Robots Destroyed (351) 1755 Value Destroyed (13136) 13136 Prototype IDs (31) 620 Alien Tech Used (0) 0 Bonus (10057) 10057 TOTAL SCORE: 29868 Bonus ------- Triggered High Security 500 High Alert Combat Kills 7258 Follower Combat Kills 988 Network Hubs Disabled 200 Registered with UFD 300 Met Optimus in HQ 500 Met R17 at Cetus 500 Friendly Fire -189 Cogmind --------- Core Integrity 0/1000 Matter 168/300 Energy 79/100 System Corruption 26% Temperature Cool (11) Movement Hovering (106) Ox1 Location -5/Factory Parts ------- > --- POWER (1) -------- (None) > --- PROPULSION (6) --- Gyrokinetic Inverter (fused) Gyrokinetic Inverter > --- UTILITY (6) ------ Large Storage Unit Advanced Weight Redist. System > --- WEAPON (4) ------- KE Penetrator > --- INVENTORY (15) --- Quantum Reactor Advanced Heat Sink High-capacity Matter Pod (200) High-capacity Matter Pod (185) Advanced Recoil Stabilizer Improved System Restoration Module DRS Beacon (Ready) Peak State ------------ > --- POWER ------------ Quantum Reactor > --- PROPULSION ------- Combat Airjet Antigrav System Antigrav System Antigrav System Antigrav System Antigrav System > --- UTILITY ---------- Advanced Heat Sink Large Storage Unit Advanced Recoil Stabilizer Improved Hacking Suite Improved Hacking Suite Advanced System Shield > --- WEAPON ----------- Advanced KE Penetrator Advanced KE Penetrator Advanced KE Penetrator Advanced KE Penetrator > --- INVENTORY -------- Light Fission Core Gravmag System Gravmag System Gravmag System Antigrav System High-capacity Matter Pod High-capacity Matter Pod Advanced Recoil Stabilizer Advanced Recoil Stabilizer Improved System Restoration Module KE Penetrator KE Penetrator KE Penetrator Precision Rocket Launcher DRS Beacon [Rating: 111] Favorites ----------- Power Micro Nuclear Core Engine Light Ion Engine Power Core Micro Nuclear Core Reactor Quantum Reactor Propulsion Combat Airjet Treads Light Treads Wheel Wheel Hover Unit Combat Airjet Utility Large Storage Unit Device Weapon Cycler Storage Large Storage Unit Processor 0b10 Decoder Chip [Skirmisher] Hackware Improved Hacking Suite Protection Layered Light Armor Plating Weapon Advanced KE Penetrator Energy Cannon Phase Cannon Ballistic Gun Advanced KE Penetrator Launcher Precision Rocket Launcher Special Weapon Plasma Cutter Slashing Weapon Greatsword Build | -11 -10 -10 -8 -6 -6 -6 -6 -6 -5 ------- Run | Yrd Mat Sub Scr Fac Ext Cet Arc Hub Fac Slots Evolved 10 | . . . . 8 . . . . 2 Power . | . . . . . . . . . . Propulsion 4 | . . . . 3 . . . . 1 Utility 4 | . . . . 3 . . . . 1 Weapon 2 | . . . . 2 . . . . . Parts Attached 155 | 7 8 3 10 57 5 17 10 1 37 Power 19 | 1 . 1 3 7 . 1 . . 6 Engine 4 | 1 . 1 1 . . 1 . . . Core 13 | . . . 2 6 . . . . 5 Reactor 2 | . . . . 1 . . . . 1 Propulsion 49 | 2 3 . 2 17 2 3 4 1 15 Treads 7 | 2 1 . 2 2 . . . . . Leg . | . . . . . . . . . . Wheel 2 | . 2 . . . . . . . . Hover 40 | . . . . 15 2 3 4 1 15 Flight . | . . . . . . . . . . Utility 46 | 2 3 1 2 12 3 4 6 . 13 Device 19 | 1 . 1 1 5 1 2 2 . 6 Storage 5 | 1 1 . 1 . . . . . 2 Processor 5 | . 1 . . 2 1 1 . . . Hackware 12 | . . . . 3 1 . 3 . 5 Protection 5 | . 1 . . 2 . 1 1 . . Artifact . | . . . . . . . . . . Weapon 41 | 2 2 1 3 21 . 9 . . 3 Energy Gun . | . . . . . . . . . . Energy Cannon 2 | . . . . 2 . . . . . Ballistic Gun 31 | 2 1 1 3 12 . 9 . . 3 Ballistic Cannon . | . . . . . . . . . . Launcher 6 | . 1 . . 5 . . . . . Special Weapon 1 | . . . . 1 . . . . . Impact Weapon . | . . . . . . . . . . Slashing Weapon 1 | . . . . 1 . . . . . Piercing Weapon . | . . . . . . . . . . Special Melee Weapon . | . . . . . . . . . . Unidentified Prototypes 6 | . . . . 4 . 2 . . . Parts Lost 73 | . 3 1 . 18 7 10 2 . 32 Power 7 | . . 1 . 2 . 1 . . 3 Propulsion 30 | . 2 . . 7 1 4 1 . 15 Utility 11 | . . . . 1 2 2 . . 6 Weapon 25 | . 1 . . 8 4 3 1 . 8 Highest Loss Streak 10 | . 2 1 . 3 2 5 2 . 10 To Critical Strikes 6 | . . . . . 2 4 . . . Average Backups 11 | . 4 7 10 12 12 10 13 13 12 Power . | . . . . . 1 . 1 1 . Propulsion 2 | . . . . 3 3 2 1 2 2 Utility 4 | . 3 3 4 4 2 2 4 5 5 Weapon 3 | . 1 3 4 2 5 4 5 5 4 Tool/Special . | . . . . . . . . . . Unused Backups 36 | . 3 . 8 10 . . 1 2 12 Power 5 | . . . 1 3 . . . . 1 Propulsion 4 | . . . 2 . . . 1 . 1 Utility 20 | . 3 . 3 7 . . . . 7 Weapon 7 | . . . 2 . . . . 2 3 Tool/Special . | . . . . . . . . . . Average Slot Usage (%) 91 | . 98 98 96 87 91 87 95 100 88 Engine 3 | . 14 12 7 . . . 6 6 . Core 3 | . . . 4 5 6 4 . . 2 Treads 4 | . 20 . 8 2 . . . . . Wheel 4 | . 6 28 19 . . . . . . Hover 19 | . . . . 26 26 25 29 33 31 Device 8 | . 8 2 12 8 11 6 9 6 5 Storage 8 | . 14 14 14 6 6 6 6 6 5 Processor 3 | . 2 11 . 5 . 7 7 . . Hackware 7 | . . . . 6 12 7 6 20 19 Protection 1 | . 2 . . 2 . 1 2 . . Ballistic Gun 22 | . 28 26 28 17 25 25 26 26 19 Peak Build Rating 111 | 9 10 13 24 76 74 73 88 80 111 Average Rating 54 | 6 8 8 16 62 70 64 77 80 89 On Entrance 42 | . 9 7 12 24 73 68 69 80 80 Naked Turns . | . . . . . . . . . . Heaviest Build 67 | 12 13 18 36 57 54 57 57 48 67 Greatest Support 78 | 40 40 20 42 78 54 53 48 48 67 Greatest Overweight (x) 2 | . 1 . 1 1 1 1 2 . 2 Average Overweight (x) . | . . . . . . . . . . Largest Inventory Capacity 20 | 8 20 8 15 15 15 15 15 15 15 Average Capacity 13 | 7 8 8 12 15 15 15 15 15 15 Most Carried 15 | . 8 8 15 15 15 15 15 15 15 Average Carried 12 | . 5 7 11 13 13 11 14 14 13 Final Capacity 15 | 8 8 8 15 15 15 15 15 15 15 Final Carried 15 | . 7 8 15 15 15 15 15 15 14 Class Distribution -------------------- 30% | Mutant 20% | Scavenger-Gunner 11% | Tank 10% | Hacker-Gunner 6% | Scavenger-Mutant 4% | Derelict-Mutant 4% | Hacker-Mutant 3% | Gunner Dominant Class ---------------- Mutant | -10/Materials Mutant | -10/Subcaves Mutant | -8/Scraptown Tank | -6/Factory Hacker-Gunner | -6/Extension Scavenger-Gunner | -6/Cetus Scavenger-Gunner | -6/Archives Scavenger-Gunner | -6/Hub_04(d) Scavenger-Gunner | -5/Factory Resources | -11 -10 -10 -8 -6 -6 -6 -6 -6 -5 ----------- Run | Yrd Mat Sub Scr Fac Ext Cet Arc Hub Fac Matter Collected 12147 | 354 858 285 90 5012 2066 601 644 186 2051 Remotely . | . . . . . . . . . . Salvage Created 17744 | 235 775 142 . 5707 5455 621 651 567 3591 Parts 732 | 18 49 15 . 270 107 28 38 39 168 Haulers Intercepted 10 | . 1 . . 5 . . . 1 3 Recyclers Shooed 14 | 1 1 . . 6 4 . . . 2 Parts Field Recycled . | . . . . . . . . . . Retrieved Matter . | . . . . . . . . . . Parts Self-Destructed 11 | . . 11 . . . . . . . Prevented . | . . . . . . . . . . Kills | -11 -10 -10 -8 -6 -6 -6 -6 -6 -5 ------- Run | Yrd Mat Sub Scr Fac Ext Cet Arc Hub Fac Combat Hostiles Destroyed 209 | . 8 8 . 72 68 7 4 4 38 Melee 1 | . . . . 1 . . . . . Guns 165 | . 7 3 . 44 68 7 4 4 28 Cannons 2 | . . . . 2 . . . . . AOE 41 | . 1 5 . 25 . . . . 10 Classes Destroyed 22 | 3 4 2 . 9 4 . . . . Worker 43 | 2 3 . . 24 . . . 3 11 Builder 16 | . . . . 8 1 . . . 7 Tunneler 14 | 5 3 . . 4 . . . . 2 Hauler 10 | . 1 . . 5 . . . 1 3 Recycler 23 | 1 2 . . 9 3 . . 1 7 Carrier 1 | . . . . . 1 . . . . Mechanic 8 | . 1 . . 3 3 . . . 1 Operator 15 | . . . . 2 2 . 9 . 2 Watcher 15 | . 3 . . 4 2 2 . 2 2 Swarmer 19 | . . 4 . 6 . . . . 9 Cutter 3 | . . . . 3 . . . . . Saboteur 3 | . . . . 2 1 . . . . Grunt 86 | . 8 . . 39 26 . . . 13 Brawler 9 | . . . . 2 7 . . . . Duelist 3 | . . . . 2 1 . . . . Protector 3 | . . . . . 3 . . . . Sentry 28 | . . . . 5 11 . 4 4 4 Demolisher 6 | . . . . . 6 . . . . Specialist 2 | . . . . . 1 . . . 1 Hunter 15 | . . . . 5 8 . . . 2 Programmer 21 | . . . . 8 4 . . . 9 Cetus Guard 7 | . . . . . . 7 . . . Subdweller 4 | . . 4 . . . . . . . Thug 1 | . . . . . 1 . . . . Best Kill Streak 24 | 8 6 4 . 18 24 5 5 4 10 Combat Bots Only 24 | . 2 4 . 6 24 4 2 2 5 Max Kills in Single Turn 6 | 1 2 2 . 6 3 2 1 3 6 Gunslinging 2 | . . . . . 1 1 . 1 2 Exploded 5 | . 1 2 . 3 . . . . 5 Melee 1 | . . . . 1 . . . . . Uniques/NPCs Destroyed . | . . . . . . . . . . Combat | -11 -10 -10 -8 -6 -6 -6 -6 -6 -5 -------- Run | Yrd Mat Sub Scr Fac Ext Cet Arc Hub Fac Hostile Shots Fired 1124 | . 77 26 . 378 137 64 20 18 404 Missed 416 | . 20 13 . 130 64 24 8 12 145 Hits 708 | . 57 13 . 248 73 40 12 6 259 Melee 10 | . . . . 5 2 . . . 3 Projectile 698 | . 57 13 . 243 71 40 12 6 256 AOE 3 | . . . . 2 . . . . 1 Critical Strikes 31 | . 1 . . 12 4 9 . . 5 Part Disruptions 6 | . . . . 1 . . . . 5 Damage Taken 12028 | . 689 223 . 4079 1188 1085 278 150 4336 Core 1986 | . 104 63 . 402 200 114 47 43 1013 Absorbed by Shields 37 | . . . . . 37 . . . . Redirected to Shielding 7 | . 7 . . . . . . . . Regen/Repaired (Parts) 911 | . . . . 502 . . . . 409 Core Remaining (%) 46 | 100 . . 33 . . . . 5 . Volleys Fired 636 | 21 76 17 . 251 104 23 31 15 98 Largest 4 | 2 2 2 . 4 4 4 4 4 4 Hottest 170 | 40 50 63 . 170 133 132 140 133 140 Shots Fired 1975 | 42 152 31 . 738 410 91 122 48 341 Gun 1842 | 42 151 26 . 618 409 91 122 48 335 Cannon 63 | . . . . 63 . . . . . Launcher 66 | . 1 5 . 53 1 . . . 6 Special 4 | . . . . 4 . . . . . Kinetic 1842 | 42 151 26 . 618 409 91 122 48 335 Thermal 67 | . . . . 67 . . . . . Explosive 66 | . 1 5 . 53 1 . . . 6 Electromagnetic . | . . . . . . . . . . Robot Hit Streak 22 | 7 16 18 . 17 19 16 22 6 9 Robot Miss Streak 6 | 2 6 2 . 5 6 1 3 5 5 Penetration Max 3 | . . . . 3 3 1 1 1 1 Secondary Targets 35 | . 1 . . 6 12 5 . 1 10 Max Gunslinging Chain 2 | . 1 . . 1 1 1 . 1 2 Shots Hit Robots 1177 | 28 95 21 . 419 256 71 77 24 186 Core Hits 743 | 11 32 15 . 274 209 30 28 17 127 Critical Kills 115 | . . . . 21 62 7 7 3 15 Critical Parts Destroyed 147 | . . . . 28 66 11 10 3 29 Critical Strikes 284 | . . . . 53 139 21 19 6 46 Destroy 281 | . . . . 50 139 21 19 6 46 Sever 3 | . . . . 3 . . . . . Melee Attacks 23 | . . . . 23 . . . . . Impact . | . . . . . . . . . . Slashing 23 | . . . . 23 . . . . . Piercing . | . . . . . . . . . . Sneak Attacks 3 | . . . . 3 . . . . . Combat Hostiles . | . . . . . . . . . . Follow-up Attacks . | . . . . . . . . . . Damage Inflicted 33429 | 320 1373 800 . 13953 5044 926 1916 1227 7870 Guns 23704 | 320 1288 331 . 6571 5044 926 1916 798 6510 Cannons 1151 | . . . . 1151 . . . . . Explosions 7642 | . 85 469 . 5299 . . . 429 1360 Melee 900 | . . . . 900 . . . . . Ramming . | . . . . . . . . . . Kinetic 23704 | 320 1288 331 . 6571 5044 926 1916 798 6510 Thermal 1699 | . . . . 1607 . . . . 92 Explosive 6373 | . 85 469 . 4875 . . . . 944 Electromagnetic 753 | . . . . . . . . 429 324 Impact . | . . . . . . . . . . Slashing 900 | . . . . 900 . . . . . Piercing . | . . . . . . . . . . Highest Corruption 25 | . . . . 2 7 7 7 2 25 Average Corruption 4 | . . . . 1 2 7 5 2 11 Corruption Purged 9 | . . . . 2 . . 7 . . Corruption Blocked . | . . . . . . . . . . Effects 64 | . . . . 5 20 7 11 . 21 Message Errors 7 | . . . . 1 1 1 3 . 1 Matter Fused 10 | . . . . . 5 1 . . 4 Heat Flow Errors 4 | . . . . . 2 . . . 2 Energy Discharges 8 | . . . . 1 2 . 2 . 3 Parts Rejected 3 | . . . . . 1 1 1 . . Parts Fused 1 | . . . . . . . . . 1 Data Loss (minor) 11 | . . . . 1 4 . 2 . 4 Data Loss (major) 2 | . . . . . . . 1 . 1 Misfires 3 | . . . . . 1 1 . . 1 Alerts 2 | . . . . 1 . 1 . . . Misdirections 2 | . . . . . . . . . 2 Weapon Failures 11 | . . . . 1 4 2 2 . 2 Overload Shots . | . . . . . . . . . . Overflow Damage 481 | . . . . 330 . . . . 151 Projectiles 23 | . . . . 23 . . . . . Explosions 320 | . . . . 169 . . . . 151 Melee 138 | . . . . 138 . . . . . Knockbacks . | . . . . . . . . . . Impact . | . . . . . . . . . . Kinetic . | . . . . . . . . . . Secondary . | . . . . . . . . . . Self-Inflicted Damage 408 | . . . . 275 . . . 99 34 Shots 8 | . . . . 6 . . . 1 1 Rammed . | . . . . . . . . . . Targets Rammed . | . . . . . . . . . . Kicked . | . . . . . . . . . . Crushed . | . . . . . . . . . . Highest Temperature 400 | . 20 . . 400 238 30 12 16 380 Average Temperature 81 | . 4 . . 89 21 11 5 6 101 Received Heat Transfer 2351 | . 405 60 . 847 199 36 45 18 741 Effects 8 | . . . . 6 . . . . 2 Energy Bleed 1 | . . . . 1 . . . . . Interference 6 | . . . . 4 . . . . 2 Short Circuit 1 | . . . . 1 . . . . . Siege Activations . | . . . . . . . . . . Martial Activations . | . . . . . . . . . . Shielding Activations . | . . . . . . . . . . Robots Disrupted 2 | . . . . . . . . . 2 Combat Hostiles . | . . . . . . . . . . Robots Corrupted . | . . . . . . . . . . Combat Hostiles . | . . . . . . . . . . Parts Fried 1 | . . . . . . . . 1 . Impact Corruptions . | . . . . . . . . . . Robots Melted . | . . . . . . . . . . Combat Hostiles . | . . . . . . . . . . Parts Melted 4 | . . . . 1 2 . . . 1 Heat Transferred 1830 | . . . . 1780 . . . . 50 Parts Sabotaged 3 | . . . . 3 . . . . . Parts Stolen . | . . . . . . . . . . Parts Stripped . | . . . . . . . . . . Power Chain Reactions 1 | . . . . . . . . . 1 Alert | -11 -10 -10 -8 -6 -6 -6 -6 -6 -5 ------- Run | Yrd Mat Sub Scr Fac Ext Cet Arc Hub Fac Maximum Alert Level 5 | . . . . 5 5 5 4 2 4 Low Security (%) 21 | 100 100 . . 17 . . . 23 . Level 1 12 | . . . . 19 . . . 63 13 Level 2 15 | . . . . 10 . . . 12 54 Level 3 14 | . . . . 14 . . 65 . 29 Level 4 20 | . . . . 23 60 . 34 . 3 Level 5 9 | . . . . 15 1 100 . . . High Security 5 | . . . . . 37 . . . . Max Security . | . . . . . . . . . . Peak Influence 4763 | 20 58 . . 2278 4763 2667 1132 469 1339 Initial 2667 | . 6 . . . 1115 2667 1004 352 229 Average 910 | 4 11 . . 879 1954 2550 1068 277 671 Influence Increases 10814 | 40 302 125 . 3193 4188 184 221 547 2014 Destroy 0b10 Robot/C 4520 | . 160 80 . 1440 1760 160 80 80 760 Destroy 0b10 Robot/NC 755 | 40 65 . . 295 90 10 45 35 175 Destroy Leader 794 | . 38 . . 346 216 . . 44 150 Allied During Kill 1759 | . . . . 2 1750 2 . . 5 Trap Triggered on 0b10 20 | . . . . 20 . . . . . Successful Hack 308 | . 17 . . 55 38 7 . 44 147 Disable Machine 735 | . 15 . . 240 45 . 75 195 165 Destroy Structure 753 | . 7 . . 360 19 5 21 119 222 Partial Spotted 180 | . . . . 105 . . . 30 45 Lose Combat Pursuer 990 | . . 45 . 330 270 . . . 345 Influence Decreases 9491 | 30 284 153 . 917 1701 2436 1725 1085 1160 Entered New Map 5677 | . 4 14 . . 1161 2096 1507 655 240 Time Decay 2520 | 30 256 139 . 717 350 120 198 130 580 Lost Part 714 | . 24 . . 180 70 100 20 . 320 Lost Ally 280 | . . . . 20 120 120 . . 20 Purge Threat 300 | . . . . . . . . 300 . Squads Dispatched 74 | . 2 . . 40 18 . . . 14 Investigation 16 | . 2 . . 8 1 . . . 5 Extermination 13 | . . . . 9 . . . . 4 Reinforcement 21 | . . . . 15 2 . . . 4 Assault 21 | . . . . 5 15 . . . 1 Garrison 3 | . . . . 3 . . . . . Intercept . | . . . . . . . . . . Searches Triggered . | . . . . . . . . . . Construction Impeded 9 | . . . . 5 1 . . . 3 Haulers Reinforced 3 | . . . . 3 . . . . . Active Scanning Responses . | . . . . . . . . . . Cargo Convoy Interrupts 1 | . . . . . . . . . 1 Stealth | -11 -10 -10 -8 -6 -6 -6 -6 -6 -5 --------- Run | Yrd Mat Sub Scr Fac Ext Cet Arc Hub Fac Distress Signals 15 | . 1 . . 4 5 2 . . 3 Communications Jammed . | . . . . . . . . . . Distress Signals . | . . . . . . . . . . Times Spotted 371 | . 19 10 . 106 137 10 12 7 70 Peak Tracking Total 32 | . 3 6 . 10 32 5 1 2 16 Tactical Retreats 29 | . . 1 . 11 6 . . . 11 Traps | -11 -10 -10 -8 -6 -6 -6 -6 -6 -5 ------- Run | Yrd Mat Sub Scr Fac Ext Cet Arc Hub Fac Traps Triggered 6 | . . . . 1 3 . . . 2 Indirectly 1 | . . . . . . . . . 1 Trap Hack Attempts . | . . . . . . . . . . Triggered . | . . . . . . . . . . Disarmed . | . . . . . . . . . . Reprogrammed 9 | . . . . . 5 . . . 4 Reused 2 | . . . . 2 . . . . . Traps Extracted . | . . . . . . . . . . Installed 2 | . . . . 2 . . . . . Triggered 2 | . . . . 2 . . . . . Most Traps Carried 2 | . . . 2 2 . . . . . Machines | -11 -10 -10 -8 -6 -6 -6 -6 -6 -5 ---------- Run | Yrd Mat Sub Scr Fac Ext Cet Arc Hub Fac Machines Disabled 53 | . 1 2 . 16 5 . 5 13 11 Max in Single Turn 10 | . 1 2 . 2 2 . 2 10 3 Garrison Access 2 | . . . . . . . . 1 1 Network Hub 1 | . . . . . . . . 1 . Machines Repaired . | . . . . . . . . . . Machines Dismantled . | . . . . . . . . . . Machines Sabotaged . | . . . . . . . . . . Overloaded Fab Kills . | . . . . . . . . . . Hacking | -11 -10 -10 -8 -6 -6 -6 -6 -6 -5 --------- Run | Yrd Mat Sub Scr Fac Ext Cet Arc Hub Fac Machines Accessed 72 | . 10 1 1 25 11 1 . 7 16 Terminals 40 | . 8 . . 11 10 1 . 6 4 Fabricators 7 | . . . . 4 . . . . 3 Repair Stations 4 | . . . . 2 . . . . 2 Recycling Units 12 | . 2 . . 5 1 . . . 4 Scanalyzers 4 | . . . . 2 . . . . 2 Garrison Access 3 | . . . . 1 . . . 1 1 Total Hacks 267 | . 40 1 1 75 26 1 . 27 96 Successful 168 | . 17 1 1 46 18 1 . 18 66 Failed 96 | . 22 . . 29 7 . . 8 30 Catastrophic 11 | . 1 . . 6 . . . . 4 Database Lockouts 3 | . 1 . . . 1 . . 1 . Manual 135 | . 34 . . 37 11 . . 21 32 Terminals 136 | . 36 . . 31 25 1 . 25 18 Fabricators 21 | . . . . 9 . . . . 12 Repair Stations 30 | . . . . 18 . . . . 12 Recycling Units 39 | . 4 . . 10 1 . . . 24 Scanalyzers 29 | . . . . 5 . . . . 24 Garrison Access 10 | . . . . 2 . . . 2 6 Terminal Hacks 50 | . 8 1 1 5 14 1 . 13 7 Robot Analysis 12 | . 4 . . . 1 . . 6 1 Prototype ID Bank 6 | . 2 . . 2 1 . . 1 . Open Door 8 | . . 1 . . 6 1 . . . Branch Access Points 1 | . . . . . . . . . 1 Emergency Access Points 1 | . . . . . . . . . 1 Machine Index 1 | . . . . . . . . . 1 Terminal Index 6 | . 2 . . 1 1 . . 1 1 Recycling Unit Index 1 | . . . . . . . . 1 . Unreport Threat 2 | . . . . . . . . 2 . Locate Traps 2 | . . . . . 2 . . . . Reprogram Traps 4 | . . . . . 2 . . 1 1 Recall Investigation 1 | . . . . . 1 . . . . Recall Reinforcements 3 | . . . . 2 . . . . 1 Zone Layout 1 | . . . . . . . . 1 . Proto ID Catalog 1 | . . . 1 . . . . . . Fabricator Hacks 9 | . . . . 4 . . . . 5 Network Status 4 | . . . . 2 . . . . 2 Load Schematic 2 | . . . . 1 . . . . 1 Build 3 | . . . . 1 . . . . 2 Repair Station Hacks 27 | . . . . 17 . . . . 10 Scan Component 14 | . . . . 9 . . . . 5 Repair 13 | . . . . 8 . . . . 5 Recycling Unit Hacks 3 | . . . . . . . . . 3 Report Inventory 2 | . . . . . . . . . 2 Retrieve Components 1 | . . . . . . . . . 1 Scanalyzer 25 | . . . . 4 . . . . 21 Insert Component 10 | . . . . 2 . . . . 8 Analyze 15 | . . . . 2 . . . . 13 Garrison Access Hacks 2 | . . . . . . . . 1 1 Seal Access 2 | . . . . . . . . 1 1 Unauthorized Hacks 52 | . 9 . . 16 4 . . 4 19 Terminals 21 | . 6 . . 7 3 . . 4 1 Assimilate 1 | . . . . . . . . 1 . Botnet 20 | . 6 . . 7 3 . . 3 1 Fabricators 4 | . . . . 3 . . . . 1 Report 3 | . . . . 2 . . . . 1 Haulers 1 | . . . . 1 . . . . . Repair Stations . | . . . . . . . . . . Recycling Units 23 | . 3 . . 6 1 . . . 13 Monitor 1 | . . . . . . . . . 1 Reject 7 | . 2 . . 1 . . . . 4 Recyclers 3 | . 1 . . 1 . . . . 1 Mask 3 | . . . . . . . . . 3 Fedlink 8 | . . . . 4 1 . . . 3 Scraphulk 1 | . . . . . . . . . 1 Scanalyzers . | . . . . . . . . . . Garrison Access 4 | . . . . . . . . . 4 Broadcast 1 | . . . . . . . . . 1 Decoy 1 | . . . . . . . . . 1 Intercept 1 | . . . . . . . . . 1 Watchers 1 | . . . . . . . . . 1 Data Cores Recovered 1 | . . . . . 1 . . . . Used . | . . . . . . . . . . Hacking Detections 55 | . 10 . . 20 6 1 . 6 12 Full Trace Events 8 | . 3 . . 4 . . . . 1 Feedback Events . | . . . . . . . . . . Feedback Blocked . | . . . . . . . . . . Robot Schematics Acquired . | . . . . . . . . . . Robots Built . | . . . . . . . . . . Authchips . | . . . . . . . . . . Time . | . . . . . . . . . . Total Robot Build Rating . | . . . . . . . . . . Part Schematics Acquired 10 | . . . . 2 . . . . 8 Parts Built 6 | . . . . 2 . . . . 4 Authchips . | . . . . . . . . . . Time 194 | . . . . 95 . . . . 99 Total Part Build Rating 40 | . . . . 10 . . . . 30 Parts Repaired 13 | . . . . 8 . . . . 5 Time 605 | . . . . 408 . . . . 197 Parts Recycled . | . . . . . . . . . . Recycled Matter . | . . . . . . . . . . Retrieved Matter . | . . . . . . . . . . Retrieved Components 10 | . . . . . . . . . 10 Parts Scanalyzed 10 | . . . . 2 . . . . 8 Part Schematics Acquired 10 | . . . . 2 . . . . 8 Parts Damaged 2 | . . . . . . . . . 2 Bothacking | -11 -10 -10 -8 -6 -6 -6 -6 -6 -5 ------------ Run | Yrd Mat Sub Scr Fac Ext Cet Arc Hub Fac Used RIF Installer . | . . . . . . . . . . Robots Hacked . | . . . . . . . . . . Non-combat . | . . . . . . . . . . Combat . | . . . . . . . . . . Robot Hacks Applied . | . . . . . . . . . . Relay Couplers Released 1 | . . . . . . . . . 1 Machine Destruction 1 | . . . . . . . . . 1 Fabnet Peak Effective % . | . . . . . . . . . . Robots Rewired 10 | . . . . 1 8 . . . 1 Allies Hacked . | . . . . . . . . . . Hacks Repelled . | . . . . . . . . . . Allies | -11 -10 -10 -8 -6 -6 -6 -6 -6 -5 -------- Run | Yrd Mat Sub Scr Fac Ext Cet Arc Hub Fac Total Allies 20 | . . . . 1 18 . . . 1 Largest Group 14 | . . . . 1 14 6 . . 1 Highest-Rated Group 539 | . . . . 34 539 172 . . 29 Highest-Rated Ally 159 | . . . . 34 159 39 . . 29 Total Orders . | . . . . . . . . . . Ally Attacks 233 | . . . . 3 210 17 . . 3 Total Damage 4487 | . . . . 177 3993 277 . . 40 Kills 29 | . . . . . 28 1 . . . Allies Corrupted 1 | . . . . . . . . . 1 Allies Melted . | . . . . . . . . . . Intel | -11 -10 -10 -8 -6 -6 -6 -6 -6 -5 ------- Run | Yrd Mat Sub Scr Fac Ext Cet Arc Hub Fac Active Infowar (turns) 4114 | 30 706 85 173 2852 . 43 225 . . Optics 526 | . . 85 173 . . 43 225 . . Terrain 1367 | 30 706 . . 631 . . . . . Decoding 2840 | . . . . 2840 . . . . . Robot Analysis Total 12 | . 4 . . . 1 . . 6 1 Derelict Logs Recovered 2 | . . . 2 . . . . . . Drone Launches . | . . . . . . . . . . Drone Recoveries . | . . . . . . . . . . Decoded 0b10 Intel 56 | . . . . 56 . . . . . Garrisons 2 | . . . . 2 . . . . . Patrols 15 | . . . . 15 . . . . . Investigations 6 | . . . . 6 . . . . . Reinforcements 13 | . . . . 13 . . . . . Guards 20 | . . . . 20 . . . . . Exploration | -11 -10 -10 -8 -6 -6 -6 -6 -6 -5 ------------- Run | Yrd Mat Sub Scr Fac Ext Cet Arc Hub Fac Turns Passed 10705 | 128 1101 529 1353 3595 1276 251 417 263 1792 Spaces Moved 9815 | 41 628 554 1277 3393 977 175 156 393 2221 Core 5 | 5 . . . . . . . . . Treads 817 | 36 423 . 224 134 . . . . . Legs . | . . . . . . . . . . Wheels 1812 | . 205 554 1053 . . . . . . Hover 7181 | . . . . 3259 977 175 156 393 2221 Flight . | . . . . . . . . . . Fastest Speed 40 | 50 80 80 80 46 59 53 48 48 40 Average Speed 68 | 146 133 80 100 59 59 64 95 48 45 Slowest Speed 250 | 160 160 80 250 151 114 113 184 48 150 Overloaded Moves . | . . . . . . . . . . Propulsion Burnouts . | . . . . . . . . . . Robots Hopped . | . . . . . . . . . . Potential Cave-ins 4 | . . . . 4 . . . . . Cave-ins Triggered . | . . . . . . . . . . Exploration Rate (%) 55 | 4 94 29 83 56 81 62 82 28 33 Regions Visited 9 Branch Regions 6 Pre-discovered Areas 3 | . . . 2 1 . . . . . Known Exits Taken . | . . . . . . . . . . Unknown Exits Taken 9 | 1 1 1 1 1 1 1 1 1 . Scrap Searched 6 | . . . 6 . . . . . . Spaces Dug 16 | . . . . 16 . . . . . Terrain Destroyed 778 | . 5 19 . 394 25 5 27 172 131 Melee 6 | . . . . 6 . . . . . Projectile 179 | . . . . 26 8 4 27 9 105 AOE 581 | . 5 19 . 355 13 . . 163 26 Terrain Rammed . | . . . . . . . . . . Walls Destroyed . | . . . . . . . . . . Machines Disabled . | . . . . . . . . . . Actions | -11 -10 -10 -8 -6 -6 -6 -6 -6 -5 --------- Run | Yrd Mat Sub Scr Fac Ext Cet Arc Hub Fac Total 12486 | 68 734 607 1353 4475 1435 252 348 437 2777 Wait 1365 | . 2 27 32 569 257 22 122 23 311 Move 9806 | 40 627 553 1276 3392 976 174 155 392 2221 Hop . | . . . . . . . . . . Pick Up 140 | . 10 1 18 58 4 6 9 3 31 Fast Attach 66 | 7 3 2 2 21 3 5 7 . 16 Attach 78 | . 2 . 1 38 6 9 2 . 20 Detach 43 | . 1 1 1 23 . 3 3 . 11 Swap 115 | . 7 5 7 43 4 9 8 1 31 Drop 123 | . 6 1 16 48 1 1 11 3 36 Fire 636 | 21 76 17 . 251 104 23 31 15 98 Melee 23 | . . . . 23 . . . . . Ram . | . . . . . . . . . . Kick . | . . . . . . . . . . Crush . | . . . . . . . . . . Escape Stasis 39 | . . . . . 39 . . . . Rewire 48 | . . . . 5 41 . . . 2 Trap 2 | . . . . 2 . . . . . Miscellaneous 2 | . . . . 2 . . . . . Route ------- -11/Scrapyard -10/Materials (discovered 6 exits: [*Mat x3] / [*Min x2] / *Sub) -10/Subcaves (discovered 5 exits: [*Mat x2] / [*Rec] / *Scr x2) -8/Scraptown (discovered 2 exits: *Fac x2) -6/Factory (discovered 4 exits: *Fac / [*Low x2] / *Ext) -6/Extension (discovered 2 exits: *Fac / *Cet) -6/Cetus (discovered 2 exits: *Fac / [*Arc]) -6/Archives (discovered 2 exits: *Hub x2) -6/Hub_04(d) (discovered 2 exits: *Fac x2) -5/Factory (discovered 4 exits: [*Fac x2] / Upp x2) History --------- Turn | Location | Event 9 | -11/Scrapyard | Discovered new exit (range 13) 129 | -11/Scrapyard | Entered Materials 130 | -10/Materials | Met a group of wandering Federalists 243 | -10/Materials | Discovered new exit (range 10) 281 | -10/Materials | Discovered new exit (range 7) 309 | -10/Materials | Build established: Mutant 324 | -10/Materials | Discovered new exit (range 15) 387 | -10/Materials | Discovered new exit (range 15) 984 | -10/Materials | Discovered new exit (range 9) 1079 | -10/Materials | Central database locked down 1223 | -10/Materials | Discovered new exit (range 10) 1230 | -10/Materials | Entered Subcaves 1231 | -10/Subcaves | Continued accompanying wandering Federalists (5) 1231 | -10/Subcaves | Approached by a straggling Scientist 1260 | -10/Subcaves | Scientist uncovered a shortcut to Scraptown 1269 | -10/Subcaves | Discovered new exit (range 16) 1363 | -10/Subcaves | Discovered new exit (range 14) 1417 | -10/Subcaves | Lost 3 allies 1467 | -10/Subcaves | Wandering Federalist uncovered a shortcut to Scraptown 1606 | -10/Subcaves | Shifting Twisted Machinery released Flamer 1607 | -10/Subcaves | Discovered new exit (range 9) 1608 | -10/Subcaves | Shifting Twisted Machinery released Hvy. Battle Rifle 1645 | -10/Subcaves | Core integrity fell below 50% 1759 | -10/Subcaves | Entered Scraptown 1823 | -8/Scraptown | Scanned Subdweller tech in exchange for log data 1825 | -8/Scraptown | Learned location of Armory (-3) 1826 | -8/Scraptown | Learned location of Warlord (-4) 1870 | -8/Scraptown | Visited UFD Registry 1870 | -8/Scraptown | Registered with UFD as "Guneater" 1886 | -8/Scraptown | Visited Fellowship of the Rings 1900 | -8/Scraptown | Visited TADAMA 1917 | -8/Scraptown | Visited Comm Corps 1961 | -8/Scraptown | Discovered new exit (range 13) 2123 | -8/Scraptown | Visited Infowarlord's Domain 2179 | -8/Scraptown | Received an X-ray algorithm 2543 | -8/Scraptown | Visited Junk Repository 2590 | -8/Scraptown | Visited Science Guys 2627 | -8/Scraptown | Visited Research Penetration Think Tank 2649 | -8/Scraptown | Visited Scrap Suit Storage 2657 | -8/Scraptown | Visited Cartography Club 2673 | -8/Scraptown | Visited Scrapoid Research Area 2688 | -8/Scraptown | Visited DA-N13 Charitable Foundation 2696 | -8/Scraptown | Found DCF Scrap (28 items) 2805 | -8/Scraptown | Visited Derelict Rescue Squad 2818 | -8/Scraptown | Found DRS Beacon 2959 | -8/Scraptown | Found Scrap Suit 3036 | -8/Scraptown | Build established: Derelict-Mutant 3036 | -8/Scraptown | Met Optimus 3036 | -8/Scraptown | Accepted into 0bPrime 3109 | -8/Scraptown | Discovered new exit (range 3) 3112 | -8/Scraptown | Entered Factory 3112 | -6/Factory | Evolved 8 slots: Propulsion x3, Utility x3, Weapon x2 3251 | -6/Factory | Discovered new exit (range 9) 3375 | -6/Factory | Lost 3 parts (1n2w) 3739 | -6/Factory | Loaded intel: 8 recycling unit locations 3753 | -6/Factory | Build established: Scavenger-Mutant 3800 | -6/Factory | Learned location of Protoforge (-2) 3863 | -6/Factory | Discovered new exit (range 7) 4653 | -6/Factory | Build established: Hacker-Mutant 4862 | -6/Factory | First assault squad dispatched 4874 | -6/Factory | Repaired Imp. Gravmag System 4876 | -6/Factory | Fabricated Hyp. Gauss Rifle (x2) 4997 | -6/Factory | Discovered new exit (range 18) 5401 | -6/Factory | Build established: Tank 5561 | -6/Factory | Repaired Cmb. Airjet 5615 | -6/Factory | Repaired Imp. Gravmag System 5667 | -6/Factory | Repaired Hyp. Gauss Rifle 5738 | -6/Factory | Repaired Enh. Nuclear Core 5784 | -6/Factory | Repaired Weapon Cycler 5829 | -6/Factory | Repaired Gravmag System 5849 | -6/Factory | Discovered new exit (range 15) 6512 | -6/Factory | Repaired Gravmag Array 6707 | -6/Factory | Entered Extension 6718 | -6/Extension | Core integrity fell below 50% 6770 | -6/Extension | Central database locked down 6832 | -6/Extension | Disrupted transfer network 6895 | -6/Extension | Rescued A7 6919 | -6/Extension | Rescued a captive Derelict 6922 | -6/Extension | Rescued a captive Derelict 6962 | -6/Extension | Rescued a captive Derelict 6964 | -6/Extension | Rescued a captive Derelict 7006 | -6/Extension | Rescued a captive Derelict 7008 | -6/Extension | Rescued a captive Derelict 7014 | -6/Extension | Loaded intel: 1 recycling unit location 7057 | -6/Extension | First assault squad dispatched 7083 | -6/Extension | Rescued a captive Derelict 7091 | -6/Extension | Rescued a captive Derelict 7091 | -6/Extension | Rescued a captive Derelict 7167 | -6/Extension | Build established: Hacker-Gunner 7488 | -6/Extension | Spotted B-75 Beast 7499 | -6/Extension | High security lockdown imminent 7499 | -6/Extension | Allies destroyed B-75 Beast 7520 | -6/Extension | Spotted B-75 Beast 7523 | -6/Extension | Allies destroyed B-75 Beast 7553 | -6/Extension | Lost 3 allies 7579 | -6/Extension | High security lockdown engaged 7716 | -6/Extension | Destroyed 14 combat bots 7796 | -6/Extension | Destroyed 17 combat bots 7828 | -6/Extension | Discovered new exit (range 10) 7917 | -6/Extension | Destroyed 24 combat bots 7932 | -6/Extension | Discovered new exit (range 6) 7983 | -6/Extension | Entered Cetus 7983 | -6/Cetus | Accompanied by 6 allies 8009 | -6/Cetus | Spotted Cetus Guard 8009 | -6/Cetus | Spotted Cetus Guard 8012 | -6/Cetus | Spotted Cetus Guard 8022 | -6/Cetus | Destroyed Cetus Guard 8029 | -6/Cetus | Allies destroyed Cetus Guard 8030 | -6/Cetus | Spotted Cetus Guard 8048 | -6/Cetus | Destroyed Cetus Guard 8060 | -6/Cetus | Destroyed Cetus Guard 8068 | -6/Cetus | Lost 6 allies 8082 | -6/Cetus | Lost 5 parts (2n3w) 8111 | -6/Cetus | Discovered new exit (range 15) 8124 | -6/Cetus | Spotted Cetus Guard 8124 | -6/Cetus | Spotted Cetus Guard 8126 | -6/Cetus | Spotted Cetus Guard 8128 | -6/Cetus | Spotted Cetus Guard 8129 | -6/Cetus | Destroyed Cetus Guard 8131 | -6/Cetus | Core integrity fell below 20% 8136 | -6/Cetus | Destroyed Cetus Guard 8152 | -6/Cetus | Destroyed Cetus Guard 8152 | -6/Cetus | Destroyed Cetus Guard 8168 | -6/Cetus | Discovered new exit (range 15) 8174 | -6/Cetus | Met Revision 17 8182 | -6/Cetus | Lost 5 parts (1p2n2u) 8233 | -6/Cetus | Build established: Scavenger-Gunner 8234 | -6/Cetus | Entered Archives 8410 | -6/Archives | Discovered new exit (range 17) 8425 | -6/Archives | Discovered new exit (range 17) 8651 | -6/Archives | Entered Hub_04(d) 8651 | -6/Hub_04(d) | Discovered new exit (range 11) 8710 | -6/Hub_04(d) | Central database locked down 8734 | -6/Hub_04(d) | Discovered new exit (range 15) 8912 | -6/Hub_04(d) | Network Hub disabled 8914 | -6/Hub_04(d) | Entered Factory 8914 | -5/Factory | Evolved 2 slots: Propulsion x1, Utility x1 8995 | -5/Factory | Fabricated Quantum Reactor (x2) 9038 | -5/Factory | Discovered new exit (range 11) 9107 | -5/Factory | Identified exit to Upper Caves 9141 | -5/Factory | Loaded intel: 8 recycling unit locations 9144 | -5/Factory | Discovered new exit (range 13) 9391 | -5/Factory | Repaired Broken Antigrav System 9454 | -5/Factory | Repaired Broken Adv. KE Penetrator 9750 | -5/Factory | Repaired Adv. KE Penetrator 9777 | -5/Factory | Repaired Cmb. Airjet 10265 | -5/Factory | Repaired Imp. Cooling System? 10298 | -5/Factory | Cargo convoy interrupted 10358 | -5/Factory | System corruption reached 10% 10414 | -5/Factory | First assault squad dispatched 10419 | -5/Factory | Lost 10 parts (1p7n2w) 10509 | -5/Factory | Lost 8 parts (1p2n2u3w) 10557 | -5/Factory | Core integrity fell below 50% 10623 | -5/Factory | Lost 4 parts (1p2n1u) 10652 | -5/Factory | Core integrity fell below 20% 10663 | -5/Factory | Fabricated Antigrav System (x2) 10700 | -5/Factory | Lost 5 parts (2n2u1w) 10706 | -5/Factory | Destroyed by P-70 Sage with Tesla Rifle Last Messages --------------- 10664_ X-77 Beamer suffers critical hit (Destroy). 10664_ Destroyed Adv. VSS Leg. 10667_ Slug penetrates X-77 Beamer. 10669_ System corrupted: Substantial component data lost. 10669_ Prc. Rocket Launcher destroyed. 10670_ Slug penetrates Wall. 10670_ Slug penetrates R-10 Processor. 10671_ The unstable cave ceiling collapses. 10673_ Slug penetrates Terminal. 10673_ Slug penetrates X-77 Beamer. 10673_ X-77 Beamer destroyed. 10682_ The unstable cave ceiling collapses. 10684_ System corrupted: Component data lost. 10697_ Acquired Gyrokinetic Inverter. 10699_ System corrupted: Heat flow error (+133). 10699_ R-10 Processor collects Corrupted Autogun. 10700_ KE Penetrator destroyed. 10701_ Slug penetrates P-70 Sage. 10703_ Slug penetrates Terminal. Map ----- +----------------------------------------------------+ | ?????????????????????????????????????????????????? | | ?????????????????????????????????????????????????? | | ?????????????????????????????????????????????????? | | ?????????????????????????????????????????????????? | | ?????????????????????????????????????????????????? | | ?????????????????????????????????????????????????? | | ?????????????????????????????????????????????????? | | ?????????????????????????????????????????????????? | | ?????????????????????????????????????????????????? | | ?????????????????????????????????????????????????? | | ?????????????????????????????????????????????????? | | ?????????????????????????????????????????????????? | | ?????????????????????????????????????????????????? | | ?????????????????????????????????????????????????? | | ?????????????????????????????????????????????????? | | ????????????????#######+###??????????????????????? | | ????????????????# #??????????????????????? | | ????????????????# ] #??????????????????????? | | ????????????????# #??????????????????????? | | ????????????????# ! # ?????????????????????? | | ????????????????# # ?? ?????????????????? | | ????????????????# ! # ?? #????????????????? | | ????????????????# # ? #????????????????? | | ????????????????# # #?^??????????????? | | ??#####+########## # #% #????????????????? | | @ ! #????????????????? | | #???^?????^??????? | | = / "???????????? | | %[ # ^""??????????? | | ? #?? ?????????? | | ?#######+###### # = ^ #????????????????? | | ????????????? % #????????????????? | | ???????????"" # ! #????????????????? | | ??????????""" #### % #????????????????? | | ??????????""" ???# ! #????????????????? | | ?????????? ???##R % ###########??????? | | ??????????""" ???? % # #??????? | | ??????????""" ????# # !!! #??????? | | ???????????"" ????# # !!! #??????? | | ???????????? ????# "T pp # ! #??????? | | ???????????? ????# """ + #??????? | | ???????????? ??????# "" """ # = #??????? | | ???????????????????# # #??????? | | ???????????????????# # #??????? | | ???????????????????# #### #############??????? | | ###????????????????# #??# #??????????????????? | | #???#????????????# #??# #??????????????????? | | #???# ????###????# ####+####???????????????? | | #???#%############ # ??????????????? | | #???# # """""""??????????????? | +----------------------------------------------------+ Best States ------------- Heat Dissipation 75 Energy Generation 25 Energy Capacity 350 Matter Stores 300 Matter Capacity 300 Sight Range 21 Terrain Scan Range 20 Terrain Scan Density 210 Additional Mass Support 9 Armor Coverage 225 Core Shielding 20 Weapon Cycling 15 Evasion (%) 57 Targeting Accuracy 5 Recoil Reduction 6 Offensive Hacking 36 Defensive Hacking 26 Item Schematics ----------------- Hyp. Gauss Rifle | -6/Factory | Scanalyzed Prc. Rocket Launcher | -6/Factory | Scanalyzed Adv. KE Penetrator | -5/Factory | Scanalyzed Centrium Medium Armor Plating | -5/Factory | Scanalyzed Antigrav System | -5/Factory | Scanalyzed Imp. Cooling System | -5/Factory | Scanalyzed Hacking Suite | -5/Factory | Scanalyzed Lgt. Fission Core | -5/Factory | Scanalyzed Adv. Recoil Stabilizer | -5/Factory | Scanalyzed Imp. System Restoration Module | -5/Factory | Scanalyzed Robot Schematics ------------------ None Fabricated ------------ Hyp. Gauss Rifle | x2 | -6/Factory Quantum Reactor | x2 | -5/Factory | Preloaded Antigrav System | x2 | -5/Factory Repaired ---------- Imp. Gravmag System | 4% | -6/Factory Cmb. Airjet | 28% | -6/Factory Imp. Gravmag System | 34% | -6/Factory Hyp. Gauss Rifle | 27% | -6/Factory Enh. Nuclear Core | 43% | -6/Factory Weapon Cycler | 62% | -6/Factory Gravmag System | 42% | -6/Factory Gravmag Array | 35% | -6/Factory Antigrav System | 99% | -5/Factory | Broken Adv. KE Penetrator | 71% | -5/Factory | Broken Adv. KE Penetrator | 11% | -5/Factory Cmb. Airjet | 10% | -5/Factory Imp. Cooling System | 18% | -5/Factory Alien Tech Used ----------------- None Achievements -------------- None Challenges ------------ None Game ------ Seed ThrowingHybridGravjet Manual? 0 Play Time 02:40:51 Cumulative 346.7 hours Start 2025.06.22 @ 23:32:27 End 2025.06.23 @ 04:23:51 Sessions 5 Manual Loads 0 Difficulty Rogue Special Mode None Game No. 206 Rogue 206 Adventurer 0 Explorer 0 Win Type - Total 4 Types 2/0/1/1/0/0/0/0/0/0 Lore% 84 Gallery% 72 Achievement% 67 Wizard Run 0 Options --------- Layout 2 ASCII 0 Keyboard 1 Movement Vi Keybinds 0 Fullscreen 1 Font 16/Tamsyn Map View 55x47 Zoom Use 0% Tactical HUD 1 Map Filters NONE Filters NONE Steam 0 RUN: 59441c28-cc7e-4c6c-9658-e015865858b0